{"text_format":"1","workbook":"xlsx","n_sheets":5,"sheets":["CLASSIFICAÇÃO GERAL 2022","jan23","fev23","mar23","abr23"],"not_rendered":{"charts":0,"images":2,"macros":1,"external_links":0,"defined_names":1,"comments":0,"pivot_tables":0},"unopened":[],"bounds":{"document_bytes":16777216,"sheet_cells":100000,"rows_first":2000,"rows_last":500,"rows_between":2000,"halvings":0,"cell_chars":16384,"cell_head_chars":4096},"cells_cut":0,"cells_raw":0,"read":"whole","date_system":"1900"}

{"sheet":"CLASSIFICAÇÃO GERAL 2022","index":0,"n_rows":143,"n_cols":5,"rows_kept":143,"cut":false,"hidden":false,"merged":[[0,0,0,4],[1,0,1,4]]}
["CLASSIFICAÇÃO GERAL ACPA – TEMPORADA VERÃO 2023 QUARTA"]
["COLEIRO FIBRA","Pássaro","Proprietário","Origem","Pontos"]
["POSIÇÃO","NOME DO PÁSSARO","NOME DO PROPRIETÁRIO","ORIGEM (CIDADE)","PONTUAÇÃO"]
["1º","PITBULL","FREDERICO SIMAS","PETRÓPOLIS",{"$f":"26+29+29+28+28+24+24+28+26+29","v":271}]
["2º","CARIOQUINHA","JONAS","TRÊS RIOS",{"$f":"28+30+30+30+26+30+30+30","v":234}]
["3º","TO LOUCO","VINÍCIUS","TRÊS RIOS",{"$f":"30+28+30+29+28+25","v":170}]
["4º","PICA PAU","ADÃO","TRÊS RIOS",{"$f":"16+26+15+25+17+23+21+22","v":165}]
["5º","SEDEX","NATHAN ELLOAH","LEVY GASPARIAN",{"$f":"26+13+19+16+14+15+20+19+13","v":155}]
["6º","CABALA","LEVI","TRÊS RIOS",{"$f":"22+10+24+19+30+24","v":129}]
["7º","SR MIAGUI","NATHAN ELLOAH","LEVY GASPARIAN",{"$f":"17+25+13+22+22+15","v":114}]
["8º","FARRINHA","LOURO","SÃO JOSÉ",{"$f":"22+25+23+28","v":98}]
["9º","BRUTAL","THIAGO FREITAS","AREAL",{"$f":"21+18+29+29","v":97}]
["10º","INCRÍVEL","RAFAEL TOP DAS GAIOLAS","JUIZ DE FORA",{"$f":"27+23+20+26","v":96}]
["11º","ALUCINADO","BERNARDO","ANTA",{"$f":"23+21+21+27","v":92}]
["12º","MENINO MALUCO","BRUNO","TRÊS RIOS",{"$f":"12+15+23+19+21","v":90}]
["13º","RAIO DE FOGO","GUSTAVO","ANTA",{"$f":"27+27+30","v":84}]
["14º","CASCAVEL","BRUNO BRANCO","PETRÓPOLIS",{"$f":"22+17+27+17","v":83}]
["15º","PREDADOR","JUNINHO ANTERO","TRÊS RIOS",{"$f":"18+11+29+25","v":83}]
["16º","CHACAL","ROMÁRIO","PETRÓPOLIS",{"$f":"25+29+28","v":82}]
["17º","VENOM","MURILO","TRÊS RIOS",{"$f":"25+21+20","v":66}]
["18º","FERA","JESSÉ JÚNIOR","TRÊS RIOS",{"$f":"22+19+16","v":57}]
["19º","SUSHI","TIAGO FARIA","PETRÓPOLIS",{"$f":"27+29","v":56}]
["20º","AZ DE OURO","THIAGO FREITAS","AREAL",{"$f":"17+22+15","v":54}]
["21º","PODEROSO CHEFINHO","BRUNO BRANCO","PETRÓPOLIS",{"$f":"16+24+12","v":52}]
["22º","SANSÃO","BRUNO PLACAS","SÃO JOSÉ V.R.P.",{"$f":"25+26","v":51}]
["23º","BEN10","PEDRO PITZER","ANTA",{"$f":"24+26","v":50}]
["24º","NOVIDADE","CARLOS ALBERTO","JUIZ DE FORA",{"$f":"13+23+14","v":50}]
["25º","CEIFADOR","BRUNO","JUIZ DE FORA",{"$f":"22+27","v":49}]
["26º","REALEZA","VINÍCIUS","SÃO JOSÉ V.R.P.",{"$f":"23+26","v":49}]
["27º","ZÉ BEDEU","JORDAN","PETRÓPOLIS",{"$f":"13+20+16","v":49}]
["28º","GRÃO VIZIR","GABRIEL/ALEX LAMA","PARAÍBA DO SUL",{"$f":"20+28","v":48}]
["29º","GRINGO","MURILO","TRÊS RIOS",{"$f":"12+21+15","v":48}]
["30º","PÉROLA NEGRA","JOÃO MARCOS","AREAL",{"$f":"22+26","v":48}]
["31º","TALISMÃ","REGINALDO","PETRÓPOLIS",{"$f":"20+26","v":46}]
["32º","CAMISA 10","JONAS","TRÊS RIOS",{"$f":"27+17","v":44}]
["33º","DESTRUIDOR","VALDECIR","PETRÓPOLIS",{"$f":"17+27","v":44}]
["34º","PROFETA","LEONARDO","SANTOS DUMONT",{"$f":"24+20","v":44}]
["35º","JHON LEME","GILSON","RIO DE JANEIRO",{"$f":"19+23","v":42}]
["36º","PEDREIRA","UILIAN","TRÊS RIOS",{"$f":"18+23","v":41}]
["37º","JAGUAR","GILMAR","JUIZ DE FORA",{"$f":"23+17","v":40}]
["38º","SEM LIMITES","DANILO MELO","SAPUCAIA",{"$f":"18+22","v":40}]
["39º","DIM","UELINTON","TRÊS RIOS",{"$f":"21+18","v":39}]
["40º","PÉROLA NEGRA","GILSON","RIO DE JANEIRO",{"$f":"19+19","v":38}]
["41º","SUPREMO","JOÃOZINHO","BEMPOSTA",{"$f":"27+11","v":38}]
["42º","MALVADÃO","BRUNO BRANCO","PETRÓPOLIS",{"$f":"23+14","v":37}]
["43º","GUERREIRO","HUDSON BALINHA","PARAÍBA DO SUL",{"$f":"19+13","v":32}]
["44º","TROLL","MURILO","TRÊS RIOS",{"$f":"15+16","v":31}]
["45º","FILHO DO VENTO","ILSON","SÃO JOSÉ V.R.P.",30]
["46º","PATRÃO","DANIEL/BINHA","JUIZ DE FORA",30]
["47º","PAVAROTI","CHICÃO","JUIZ DE FORA",30]
["48º","CACHORRO LOUCO","LUCIANO","PARAÍBA DO SUL",29]
["49º","LIGEIRINHO","GABRIEL/RODRIGO","PARAIBA DO SUL",29]
["50º","MUTUM","CYR","JUIZ DE FORA",29]
["51º","WALTER","FÁBIO/WESLEY","TRÊS RIOS",29]
["52º","É SHOW","GABRIEL","PARAÍBA DO SUL",28]
["53º","FAMÍLIA","FLÁVIO","SAPUCAIA",28]
["54º","PIVETE","REINALDO","JUIZ DE FORA",28]
["55º","UNICÓRNIO","ITALLO","PARAÍBA DO SUL",28]
["56º","CAFU","ROMUALDO PICININI","MATIAS BARBOSA",27]
["57º","FERRARI","GABRIEL/CICINHO","PARAÍBA DO SUL",27]
["58º","LEÃO","WALDEI","JUIZ DE FORA",27]
["59º","LIGEIRINHO","MARQUINHO","TRÊS RIOS",{"$f":"14+12","v":26}]
["60º","MALUCO","BRUNO","TRÊS RIOS",26]
["61º","PRIVADO","ILSON","SÃO JOSÉ V.R.P.",26]
["62º","ALTA TENSÃO","CARLOS ALBERTO","JUIZ DE FORA",25]
["63º","BIPOLAR","MATHEUS","PETRÓPOLIS",25]
["64º","CORINGA","SANDRO","JUIZ DE FORA",25]
["65º","MADRUGADÃO","DIOGO","ANTA",25]
["66º","SONHO","MANDÍBULA","PETRÓPOLIS",25]
["67º","BMW","FAMÍLIA HONORATO","PARAIBA DO SUL",24]
["68º","BOCA LOCA","RAFAEL","PETRÓPOLIS",24]
["69º","COMETA","JOÃO MARCOS","AREAL",24]
["70º","GAROTO","LEANDRO","SANTOS DUMONT",24]
["71º","NEIMAR","GERSON","TRÊS RIOS",24]
["72º","RISADINHA","DEIVID","JUIZ DE FORA",24]
["73º","CORINGA","GABRIEL MARTINS","PARAÍBA DO SUL",23]
["74º","PIVETE","JOÃO MARCOS","AREAL",23]
["75º","BILLIKID","AMILTON","JUIZ DE FORA",22]
["76º","CORVO","SANDRO","ANTA",22]
["77º","MESSI","ROGÉRIO JUSTO","JUIZ DE FORA",21]
["78º","SUPREMO","FABIANO","JUIZ DE FORA",21]
["79º","TROVÃO","LUCIMAR/LUIZ HENRIQUE","TRÊS RIOS",21]
["80º","V3","UILIAN","TRÊS RIOS",21]
["81º","VINTE DOIS","ALISSON","TRÊS RIOS",21]
["82º","BICO DOIDO","BRUNO","ANTA",20]
["83º","LIGEIRINHO","JULIO CESAR","PETRÓPOLIS",20]
["84º","METRALHA","HENRIQUE","TRÊS RIOS",20]
["85º","PARAÍSO","DANIEL","MATIAS BARBOSA",20]
["86º","PQD","CLEBER","TRÊS RIOS",20]
["87º","VELOZ","GILSON","SANTOS DUMONT",20]
["88º","CABARÉ","ANDERSON CLAUSSER","PETRÓPOLIS",19]
["89º","FURIOSO","JOÃO MARCOS","AREAL",19]
["90º","TUBARÃO","MAURO JR.","TRÊS RIOS",19]
["91º","BARÃO","HENRIQUE","ANTA",18]
["92º","CIDADE ALERTA","HIGO BATALHA","TRÊS RIOS",18]
["93º","RELÂMPAGO","JUNINHO","SAPUCAIA",18]
["94º","RELÂMPAGO","RAMON DINIZ","ANTA",18]
["95º","RISQUINHO","JONAS","PARAÍBA DO SUL",18]
["96º","SAGAT","HERALDO","PETRÓPOLIS",18]
["97º","SPARTA","RAFAEL","PETRÓPOLIS",18]
["98º","TRIPLO X","GILSON","RIO DE JANEIRO",18]
["99º","CASSINO","RAFAEL","NITERÓI",17]
["100º","FILHOTE","LUCIMAR/LUIS HENRIQUE","TRÊS RIOS",17]
["101º","LIGEIRO","TONINHO","TRÊS RIOS",17]
["102º","NOCAUTE","DIOGO","ANTA",17]
["103º","COMETA","GILSON","RIO DE JANEIRO",16]
["104º","DESEJO","FREDERICO","PETRÓPOLIS",16]
["105º","FOGUETINHO","LOUCO","SÃO JOSÉ",16]
["106º","LINHA AMARELA","HENRIQUE","ANTA",16]
["107º","NOVINHO","CICINHO","PARAIBA DO SUL",16]
["108º","TIO SAM","HENRIQUE","ANTA",16]
["109º","007","ROBSON CAMPOS","PETRÓPOLIS",15]
["110º","É RUIM","MANDÍBULA","PETRÓPOLIS",15]
["111º","MEXTILL","THIAGO","TRÊS RIOS",15]
["112º","REI DAS MATAS","FLÁVIO/PAULO","PATY DO ALFERES",15]
["113º","AGRESSIVO","NATHAN","LEVY GASPARIAN",14]
["114º","AR15","LUCIANO","PARAÍBA DO SUL",14]
["115º","GLADIADOR","BRUNO BRANCO","PETRÓPOLIS",14]
["116º","HONDA","ROBERTO/WARLISON","SAPUCAIA",14]
["117º","KAWAKI","PATRICK","PETRÓPOLIS",14]
["118º","LOBO MAL","RAFAEL LAMBARI","PETRÓPOLIS",14]
["119º","MANÉ GARRINCHA","MÁRCIO","PARAÍBA DO SUL",14]
["120º","FAÍSCA","BRUNO BRANCO","PETRÓPOLIS",13]
["121º","GARGAMEL","FAMÍLIA HONORATO","PARAIBA DO SUL",13]
["122º","JUSTICEIRO","MÁRCIO","PARAIBA DO SUL",13]
["123º","HULK","HENRIQUE","ANTA",12]
["124º","LIGEIRIN","MARQUINHO","?",12]
["125º","NFT","BRUNO BRANCO","PETRÓPOLIS",12]
["126º","PANTERA","MARQUINHO","?",12]
["127º","FAMÍLIA","BRUNO","JUIZ DE FORA",11]
["128º","MARLEY","EDUARDO","TRÊS RIOS",11]
["129º","PICA","MANDÍBULA","PETRÓPOLIS",11]
["130º"]
["131º"]
["132º"]
["133º"]
["134º"]
["135º"]
["136º"]
["137º"]
["138º"]
["139º"]
["140º"]

{"sheet":"jan23","index":1,"n_rows":23,"n_cols":27,"rows_kept":23,"cut":false,"hidden":false,"merged":[[0,0,0,5],[0,7,0,12],[0,14,0,19],[0,21,0,26]]}
["2023-01-04",null,null,null,null,null,null,"2023-01-11",null,null,null,null,null,null,"2023-01-18",null,null,null,null,null,null,"2023-01-25"]
["POS.","PÁSSARO","PROPRIETÁRIO","ORIGEM","CANTOS","PONTOS",null,"POS.","PÁSSARO","PROPRIETÁRIO","ORIGEM","CANTOS","PONTOS",null,"POS.","PÁSSARO","PROPRIETÁRIO","ORIGEM","CANTOS","PONTOS",null,"POS.","PÁSSARO","PROPRIETÁRIO","ORIGEM","CANTOS","PONTOS"]
["1º","TO LOUCO","VINÍCIUS","TRÊS RIOS",136,30,null,"1º","FILHO DO VENTO","ILSON","SÃO JOSÉ V.R.P.",103,30,null,"1º","PAVAROTI","CHICÃO","JUIZ DE FORA",162,30,null,"1º","TO LOUCO","VINÍCIUS","TRÊS RIOS",162,30]
["2º","CACHORRO LOUCO","LUCIANO","PARAÍBA DO SUL",124,29,null,"2º","PITBULL","FREDERICO SIMAS","PETRÓPOLIS",103,29,null,"2º","PITBULL","FREDERICO SIMAS","PETRÓPOLIS",146,29,null,"2º","LIGEIRINHO","GABRIEL/RODRIGO","PARAIBA DO SUL",122,29]
["3º","UNICÓRNIO","ITALLO","PARAÍBA DO SUL",107,28,null,"3º","É SHOW","GABRIEL","PARAÍBA DO SUL",89,28,null,"3º","TO LOUCO","VINÍCIUS","TRÊS RIOS",129,28,null,"3º","FAMÍLIA","FLÁVIO","SAPUCAIA",104,28]
["4º","FERRARI","GABRIEL/CICINHO","PARAÍBA DO SUL",103,27,null,"4º","SUSHI","TIAGO FARIA","PETRÓPOLIS",77,27,null,"4º","SUPREMO","JOÃOZINHO","BEMPOSTA",114,27,null,"4º","CAMISA 10","JONAS","TRÊS RIOS",102,27]
["5º","PITBULL","FREDERICO SIMAS","PETRÓPOLIS",101,26,null,"5º","SEDEX","NATHAN ELLOAH","LEVY GASPARIAN",65,26,null,"5º","PRIVADO","ILSON","SÃO JOSÉ V.R.P.",109,26,null,"5º","SANSÃO","BRUNO PLACAS","SÃO JOSÉ V.R.P.",100,26]
["6º","SONHO","MANDÍBULA","PETRÓPOLIS",97,25,null,"6º","CORINGA","SANDRO","JUIZ DE FORA",65,25,null,"6º","SANSÃO","BRUNO PLACAS","SÃO JOSÉ V.R.P.",104,25,null,"6º","FARRINHA","LOURO","SÃO JOSÉ V.R.P.",99,25]
["7º","RISADINHA","DEIVID","JUIZ DE FORA",91,24,null,"7º","NEIMAR","GERSON","TRÊS RIOS",62,24,null,"7º","PODEROSO CHEFINHO","BRUNO BRANCO","PETRÓPOLIS",102,24,null,"7º","BEN10","PEDRO PITZER","ANTA",93,24]
["8º","PIVETE","JOÃO MARCOS","AREAL",91,23,null,"8º","CORINGA","GABRIEL MARTINS","PARAÍBA DO SUL",50,23,null,"8º","REALEZA","VINÍCIUS","SÃO JOSÉ V.R.P.",96,23,null,"8º","ALUCINADO","BERNARDO","ANTA",92,23]
["9º","FERA","JESSÉ JÚNIOR","TRÊS RIOS",80,22,null,"9º","FARRINHA","LOURO","TRÊS RIOS",50,22,null,"9º","CASCAVEL","BRUNO BRANCO","PETRÓPOLIS",95,22,null,"9º","CABALA","LEVI","TRÊS RIOS",88,22]
["10º","DIM","UELINTON","TRÊS RIOS",80,21,null,"10º","VINTE DOIS","ALISSON","TRÊS RIOS",50,21,null,"10º","GRINGO","MURILO","TRÊS RIOS",86,21,null,"10º","BRUTAL","THIAGO FREITAS","AREAL",87,21]
["11º","TALISMÃ","REGINALDO","PETRÓPOLIS",79,20,null,"11º","BICO DOIDO","BRUNO","ANTA",45,20,null,"11º","VELOZ","GILSON","SANTOS DUMONT",77,20,null,"11º","LIGEIRINHO","JULIO CESAR","PETRÓPOLIS",84,20]
["12º","CABARÉ","ANDERSON CLAUSSER","PETRÓPOLIS",78,19,null,"12º","FERA","JESSÉ JÚNIOR","TRÊS RIOS",42,19,null,"12º","GUERREIRO","HUDSON BALINHA","PARAÍBA DO SUL",77,19,null,"12º","SEDEX","NATHAN ELLOAH","LEVY GASPARIAN",78,19]
["13º","RISQUINHO","JONAS","PARAÍBA DO SUL",75,18,null,"13º","SEM LIMITES","DANILO MELO","SAPUCAIA",35,18,null,"13º","DIM","UELINTON","TRÊS RIOS",75,18,null,"13º","PREDADOR","JUNINHO ANTERO","TRÊS RIOS",64,18]
["14º","AZ DE OURO","THIAGO FREITAS","AREAL",67,17,null,"14º","ENLOUQUECIDO","JOÃO PEDRO","PETRÓPOLIS",9,"N/A",null,"14º","LIGEIRO","TONINHO","TRÊS RIOS",69,17,null,"14º","CASCAVEL","BRUNO BRANCO","PETRÓPOLIS",54,17]
["15º","PODEROSO CHEFINHO","BRUNO BRANCO","PETRÓPOLIS",60,16,null,"15º",null,null,null,null,null,null,"15º","TIO SAM","HENRIQUE","ANTA",67,16,null,"15º","PICA PAU","ADÃO","TRÊS RIOS",54,16]
["16º","É RUIM","MANDÍBULA","PETRÓPOLIS",56,15,null,"16º",null,null,null,null,null,null,"16º","REI DAS MATAS","FLÁVIO/PAULO","PATY DO ALFERES",62,15,null,"16º","007","ROBSON CAMPOS","PETRÓPOLIS",48,15]
["17º","MANÉ GARRINCHA","MÁRCIO","PARAÍBA DO SUL",55,14,null,"17º",null,null,null,null,null,null,"17º","AR15","LUCIANO","PARAÍBA DO SUL",56,14,null,"17º","KAWAKI","PATRICK","PETRÓPOLIS",45,14]
["18º","FAÍSCA","BRUNO BRANCO","PETRÓPOLIS",52,13,null,"18º",null,null,null,null,null,null,"18º","SEDEX","NATHAN ELLOAH","LEVY GASPARIAN",54,13,null,"18º","GUERREIRO","HUDSON","PARAIBA DO SUL",44,13]
["19º","GRINGO","MURILO","TRÊS RIOS",49,12,null,"19º",null,null,null,null,null,null,"19º","LIGEIRIN","MARQUINHO","?",52,12,null,"19º","MENINO MALUCO","BRUNO","TRÊS RIOS",35,12]
["20º","PICA","MANDÍBULA","PETRÓPOLIS",48,11,null,"20º",null,null,null,null,null,null,"20º","FAMÍLIA","BRUNO","JUIZ DE FORA",47,11,null,"20º"]
[null,null,null,null,{"$f":"E3:E22","v":{"$error":"#VALUE!"}}]

{"sheet":"fev23","index":2,"n_rows":22,"n_cols":27,"rows_kept":22,"cut":false,"hidden":false,"merged":[[0,0,0,5],[0,7,0,12],[0,14,0,19],[0,21,0,26]]}
["2023-02-01",null,null,null,null,null,null,"2023-02-08",null,null,null,null,null,null,"2023-02-15",null,null,null,null,null,null,"2023-02-22"]
["POS.","PÁSSARO","PROPRIETÁRIO","ORIGEM","CANTOS","PONTOS",null,"POS.","PÁSSARO","PROPRIETÁRIO","ORIGEM","CANTOS","PONTOS",null,"POS.","PÁSSARO","PROPRIETÁRIO","ORIGEM","CANTOS","PONTOS",null,"POS.","PÁSSARO","PROPRIETÁRIO","ORIGEM","CANTOS","PONTOS"]
["1º","PATRÃO","DANIEL/BINHA","JUIZ DE FORA",177,30,null,"1º","CARIOQUINHA","JONAS","TRÊS RIOS",206,30,null,"1º","CARIOQUINHA","JONAS","TRÊS RIOS",180,30,null,"1º","CARIOQUINHA","JONAS","TRÊS RIOS",180,30]
["2º","TO LOUCO","VINÍCIUS","TRÊS RIOS",150,29,null,"2º","MUTUM","CYR","JUIZ DE FORA",143,29,null,"2º","SUSHI","TIAGO FARIA","PETRÓPOLIS",150,29,null,"2º","BRUTAL","THIAGO FREITAS","AREAL",168,29]
["3º","CARIOQUINHA","JONAS","TRÊS RIOS",127,28,null,"3º","TO LOUCO","VINÍCIUS","TRÊS RIOS",132,28,null,"3º","PITBULL","FREDERICO","PETRÓPOLIS",140,28,null,"3º","PITBULL","FREDERICO","PETRÓPOLIS",152,28]
["4º","INCRÍVEL","RAFAEL TOP DAS GAIOLAS","JUIZ DE FORA",125,27,null,"4º","DESTRUIDOR","VALDECIR","PETRÓPOLIS",124,27,null,"4º","CASCAVEL","BRUNO BRANCO","PETRÓPOLIS",135,27,null,"4º","RAIO DE FOGO","GUSTAVO","ANTA",151,27]
["5º","BEN10","PEDRO PITZER","SAPUCAIA",115,26,null,"5º","PICA PAU","ADÃO","TRÊS RIOS",119,26,null,"5º","REALEZA","VINÍCIUS","?",127,26,null,"5º","MALUCO","BRUNO","TRÊS RIOS",146,26]
["6º","BIPOLAR","MATHEUS","PETRÓPOLIS",112,25,null,"6º","VENOM","MURILO","TRÊS RIOS",118,25,null,"6º","TO LOUCO","VINÍCIUS","TRÊS RIOS",121,25,null,"6º","SR MIAGUI","NATHAN ELLOAH","LEVY GASPARIAN",130,25]
["7º","BOCA LOCA","RAFAEL","PETRÓPOLIS",110,24,null,"7º","COMETA","JOÃO MARCOS","AREAL",114,24,null,"7º","CABALA","LEVI","TRÊS RIOS",115,24,null,"7º","BMW","FAMÍLIA HONORATO","PARAIBA DO SUL",126,24]
["8º","JAGUAR","GILMAR","JUIZ DE FORA",110,23,null,"8º","INCRÍVEL","RAFAEL TOP DAS GAIOLAS","JUIZ DE FORA",107,23,null,"8º","MALVADAO","BRUNO BRANCO","PETRÓPOLIS",115,23,null,"8º","NOVIDADE","CARLOS ALBERTO","JUIZ DE FORA",124,23]
["9º","AZ DE OURO","THIAGO FREITAS","AREAL",100,22,null,"9º","SEM LIMITES","DANILO MELO","SAPUCAIA",103,22,null,"9º","CORVO","SANDRO","ANTA",111,22,null,"9º","CEIFADOR","BRUNO","JUIZ DE FORA",124,22]
["10º","ALUCINADO","BERNARDO","ANTA",90,21,null,"10º","ALUCINADO","BERNARDO","ANTA",93,21,null,"10º","TROVÃO","LUCIMAR/LUIZ HENRIQUE","TRÊS RIOS",109,21,null,"10º","VENOM","MURILO","TRÊS RIOS",122,21]
["11º","PARAÍSO","DANIEL","MATIAS BARBOSA",85,20,null,"11º","ZÉ BEDEU","JORDAN LIMA","PETRÓPOLIS",90,20,null,"11º","INCRÍVEL","RAFAEL TOP DAS GAIOLAS","JUIZ DE FORA",108,20,null,"11º","GRÃO VIZIR","GABRIEL/ALEX LAMA","PARAIBA DO SUL",113,20]
["12º","CABALA","LEVI","TRÊS RIOS",74,19,null,"12º","TUBARÃO","MAURO JR.","TRÊS RIOS",73,19,null,"12º","FURIOSO","JOÃO MARCOS","AREAL",107,19,null,"12º","CABALA","LEVI","TRÊS RIOS",103,19]
["13º","SPARTA","RAFAEL","PETRÓPOLIS",71,18,null,"13º","CIDADE ALERTA","HIGO BATALHA","TRÊS RIOS",71,18,null,"13º","BRUTAL","THIAGO FREITAS","AREAL",101,18,null,"13º","SAGAT","HERALDO","PETRÓPOLIS",102,18]
["14º","DESTRUIDOR","VALDECIR","PETRÓPOLIS",71,17,null,"14º","CAMISA 10","JONAS","TRÊS RIOS",57,17,null,"14º","SR MIAGUI","NATHAN ELLOAH","LEVY GASPARIAN",84,17,null,"14º","CASSINO","RAFAEL","NITERÓI",90,17]
["15º","SEDEX","NATHAN ELLOAH","LEVY GASPARIAN",68,16,null,"15º","FERA","JESSE","TRÊS RIOS",52,16,null,"15º","ZÉ BEDEU","JORDAN","PETRÓPOLIS",73,16,null,"15º","NOVINHO","CICINHO","PARAIBA DO SUL",88,16]
["16º","GRINGO","MURILO","TRÊS RIOS",66,15,null,"16º","MENINO","BRUNO","TRÊS RIOS",52,15,null,"16º","AZ DE OURO","THIAGO FREITAS","AREAL",70,15,null,"16º","PICA-PAU","ADÃO","TRÊS RIOS",88,15]
["17º","GLADIADOR","BRUNO BRANCO","PETRÓPOLIS",63,14,null,"17º","LIGEIRINHO","MARQUINHO","?",43,14,null,"17º","SEDEX","NATHAN ELLOAH","LEVY GASPARIAN",63,14,null,"17º","LOBO MAL","RAFAEL LAMBARI","PETRÓPOLIS",77,14]
["18º","ZÉ BEDEU","JORDAN","PETRÓPOLIS",51,13,null,"18º","NOVIDADE","CARLOS ALBERTO","JUIZ DE FORA",36,13,null,"18º","JUSTICEIRO","MÁRCIO","PARAÍBA DO SUL",63,13,null,"18º","GARGAMEL","FAMÍLIA HONORATO","PARAIBA DO SUL",49,13]
["19º","PODEROSO CHEFINHO","BRUNO BRANCO","PETRÓPOLIS",40,12,null,"19º","PANTERA","MARQUINHO","?",30,12,null,"19º","LIGEIRINHO","MARQUINHO","TRÊS RIOS",56,12,null,"19º","HULK","HENRIQUE","ANTA",49,12]
["20º","SAFADÃO","CLODOALDO","TRÊS RIOS",27,"N/A",null,"20º",null,null,null,null,null,null,"20º","MARLEY","EDUARDO","TRÊS RIOS",46,11,null,"20º","PREDADOR","JUNINHO ANTERO","TRÊS RIOS",40,11]

{"sheet":"mar23","index":3,"n_rows":22,"n_cols":34,"rows_kept":22,"cut":false,"hidden":false,"merged":[[0,0,0,5],[0,7,0,12],[0,14,0,19],[0,21,0,26],[0,28,0,33]]}
["2023-03-01",null,null,null,null,null,null,"2023-03-08",null,null,null,null,null,null,"2023-03-15",null,null,null,null,null,null,"2023-03-22",null,null,null,null,null,null,"2023-03-29"]
["POS.","PÁSSARO","PROPRIETÁRIO","ORIGEM","CANTOS","PONTOS",null,"POS.","PÁSSARO","PROPRIETÁRIO","ORIGEM","CANTOS","PONTOS",null,"POS.","PÁSSARO","PROPRIETÁRIO","ORIGEM","CANTOS","PONTOS",null,"POS.","PÁSSARO","PROPRIETÁRIO","ORIGEM","CANTOS","PONTOS",null,"POS.","PÁSSARO","PROPRIETÁRIO","ORIGEM","CANTOS","PONTOS"]
["1º","CABALA","LEVI","TRÊS RIOS",175,30,null,"1º","RAIO DE FOGO","GUSTAVO","ANTA",159,30,null,"1º","CARIOQUINHA","JONAS","TRÊS RIOS",186,30,null,"1º","CARIOQUINHA","JONAS","TRÊS RIOS",159,30,null,"1º","CARIOQUINHA","JONAS","TRÊS RIOS",194,30]
["2º","PREDADOR","JUNINHO ANTERO","TRÊS RIOS",159,29,null,"2º","BRUTAL","THIAGO FREITAS","AREAL",146,29,null,"2º","CHACAL","ROMÁRIO","PETRÓPOLIS",140,29,null,"2º","WALTER","FÁBIO/WESLEY","TRÊS RIOS",156,29,null,"2º","PITBULL","FREDERICO","PETRÓPOLIS",154,29]
["3º","PIVETE","REINALDO","JUIZ DE FORA",140,28,null,"3º","GRÃO VIZIR","ALEX LAMA/GABRIEL","PARAÍBA DO SUL",139,28,null,"3º","PITBULL","FREDERICO","PETRÓPOLIS",139,28,null,"3º","FARRINHA","LOURO","SÃO JOSÉ",127,28,null,"3º","CHACAL","ROMÁRIO","AREAL",134,28]
["4º","RAIO DE FOGO","GUSTAVO","ANTA",130,27,null,"4º","LEÃO","WALDEI","JUIZ DE FORA",137,27,null,"4º","CAFU","ROMUALDO PICININI","MATIAS BARBOSA",131,27,null,"4º","CEIFADOR","BRUNO","JUIZ DE FORA",116,27,null,"4º","ALUCINADO","BERNARDO","ANTA",112,27]
["5º","INCRÍVEL","RAFAEL TOP DAS GAIOLAS","JUIZ DE FORA",127,26,null,"5º","CARIOQUINHA","JONAS","TRÊS RIOS",137,26,null,"5º","TALISMÃ","REGINALDO","PETRÓPOLIS",111,26,null,"5º","PITBULL","FREDERICO","PETRÓPOLIS",108,26,null,"5º","PÉROLA NEGRA","JOÃO MARCOS","AREAL",112,26]
["6º","PICA-PAU","ADÃO","TRÊS RIOS",124,25,null,"6º","CHACAL","ROMÁRIO","AREAL",133,25,null,"6º","ALTA TENSÃO","CARLOS ALBERTO","JUIZ DE FORA",109,25,null,"6º","PREDADOR","JUNINHO","TRÊS RIOS",104,25,null,"6º","MADRUGADÃO","DIOGO","ANTA",107,25]
["7º","PITBULL","FREDERICO","PETRÓPOLIS",120,24,null,"7º","PITBULL","FREDERICO","PETRÓPOLIS",131,24,null,"7º","CABALA","LEVI","TRÊS RIOS",101,24,null,"7º","PROFETA","LÉO","SANTOSDUMONT",95,24,null,"7º","GAROTO","LEANDRO","SANTOS DUMONT",103,24]
["8º","MENINO MALUCO","BRUNO","TRÊS RIOS",120,23,null,"8º","FARRINHA","LOURO","SÃO JOSÉ",96,23,null,"8º","PICA-PAU","ADÃO","TRÊS RIOS",96,23,null,"8º","PEDREIRA","UILIAN","TRÊS RIOS",94,23,null,"8º","JHON LEME","GILSON","RIO DE JANEIRO",102,23]
["9º","BILLIKID","AMILTON","JUIZ DE FORA",114,22,null,"9º","SR. MIAGUI","NATHAN","LEVY GASPARIAN",91,22,null,"9º","PÉROLA NEGRA","JOÃO MARCOS","AREAL",92,22,null,"9º","SR. MIAGUI","NATHAN","LEVY GASPARIAN",92,22,null,"9º","PICA-PAU","ADÃO","TRÊS RIOS",100,22]
["10º","MESSI","ROGÉRIO JUSTO","JUIZ DE FORA",111,21,null,"10º","SUPREMO","FABIANO","JUIZ DE FORA",80,21,null,"10º","MENINO MALUCO","BRUNO","TRÊS RIOS",91,21,null,"10º","PICA-PAU","ADÃO","TRÊS RIOS",88,21,null,"10º","V3","UILIAN","TRÊS RIOS",92,21]
["11º","VENOM","MURILO","TRÊS RIOS",105,20,null,"11º","SEDEX","NATHAN","LEVY GASPARIAN",79,20,null,"11º","PQD","CLEBER","TRÊS RIOS",86,20,null,"11º","METRALHA","HENRIQUE","TRÊS RIOS",80,20,null,"11º","PROFETA","LEONARDO","SANTOS DUMONT",78,20]
["12º","PÉROLA NEGRA","GILSON","RIO DE JANEIRO",103,19,null,"12º","MENINO MALUCO","BRUNO","TRÊS RIOS",79,19,null,"12º","SEDEX","NATHAN","LEVY",81,19,null,"12º","JHON LEME","GILSON","RIO DE JANEIRO",75,19,null,"12º","PÉROLA NEGRA","GILSON","RIO DE JANEIRO",75,19]
["13º","RELÂMPAGO","JUNINHO","SAPUCAIA",102,18,null,"13º","RELÂMPAGO","RAMON DINIZ","ANTA",68,18,null,"13º","PEDREIRA","UILIAN","TRÊS RIOS",78,18,null,"13º","TRIPLO X","GILSON","RIO DE JANEIRO",75,18,null,"13º","BARÃO","HENRIQUE","ANTA",73,18]
["14º","CASCAVEL","BRUNO BRANCO","PETRÓPOLIS",94,17,null,"14º","PICA-PAU","ADÃO","TRÊS RIOS",65,17,null,"14º","NOCAUTE","DIOGO","ANTA",63,17,null,"14º","FILHOTE","LUCIMAR/LUIS HENRIQUE","TRÊS RIOS",66,17,null,"14º","JAGUAR","GILMAR","JUIZ DE FORA",59,17]
["15º","COMETA","GILSON","RIO DE JANEIRO",93,16,null,"15º","FOGUETINHO","LOUCO","SÃO JOSÉ",41,16,null,"15º","LINHA AMARELA","HENRIQUE","ANTA",60,16,null,"15º","TROLL","MURILO","TRÊS RIOS",66,16,null,"15º","DESEJO","FREDERICO","PETRÓPOLIS",46,16]
["16º","SEDEX","NATHAN ELLOAH","LEVY GASPARIAN",93,15,null,"16º",null,null,null,null,null,null,"16º","TROLL","MURILO","TRÊS RIOS",57,15,null,"16º","MEXTILL","THIAGO","TRÊS RIOS",57,15,null,"16º","SR MIAGUI","NATHAN","LEVY GASPARIAN",40,15]
["17º","MALVADAO","BRUNO BRANCO","PETRÓPOLIS",90,14,null,"17º",null,null,null,null,null,null,"17º","NOVIDADE","CARLOS ALBERTO","JUIZ DE FORA",52,14,null,"17º","HONDA","ROBERTO/WARLISON","SAPUCAIA",53,14,null,"17º","AGRESSIVO","NATHAN","LEVY GASPARIAN",40,14]
["18º","SR MIAGUI","NATHAN ELLOAH","LEVY GASPARIAN",88,13,null,"18º",null,null,null,null,null,null,"18º","CARCAMANO","ROMUALDO PICININI","MATIAS BARBOSA",27,"N/A",null,"18º","SEDEX","NATHAN","LEVY GASPARIAN",42,13,null,"18º","MALVADÃO","UILIAN","TRÊS RIOS",15,"N/A"]
["19º","NFT","BRUNO BRANCO","PETRÓPOLIS",85,12,null,"19º",null,null,null,null,null,null,"19º","AGRESSIVO","PEDRO","SAPUCAIA",21,"N/A",null,"19º",null,null,null,null,null,null,"19º"]
["20º","SUPREMO","JOÃOZINHO","BEMPOSTA",82,11,null,"20º",null,null,null,null,null,null,"20º",null,null,null,null,null,null,"20º",null,null,null,null,null,null,"20º"]

{"sheet":"abr23","index":4,"n_rows":22,"n_cols":27,"rows_kept":22,"cut":false,"hidden":false,"merged":[[0,0,0,5],[0,7,0,12],[0,14,0,19],[0,21,0,26]]}
["2023-04-05",null,null,null,null,null,null,"2023-04-12",null,null,null,null,null,null,"2023-04-19",null,null,null,null,null,null,"2023-04-26"]
["POS.","PÁSSARO","PROPRIETÁRIO","ORIGEM","CANTOS","PONTOS",null,"POS.","PÁSSARO","PROPRIETÁRIO","ORIGEM","CANTOS","PONTOS",null,"POS.","PÁSSARO","PROPRIETÁRIO","ORIGEM","CANTOS","PONTOS",null,"POS.","PÁSSARO","PROPRIETÁRIO","ORIGEM","CANTOS","PONTOS"]
["1º",null,null,null,null,30,null,"1º",null,null,null,null,30,null,"1º",null,null,null,null,30,null,"1º",null,null,null,null,30]
["2º",null,null,null,null,29,null,"2º",null,null,null,null,29,null,"2º",null,null,null,null,29,null,"2º",null,null,null,null,29]
["3º",null,null,null,null,28,null,"3º",null,null,null,null,28,null,"3º",null,null,null,null,28,null,"3º",null,null,null,null,28]
["4º",null,null,null,null,27,null,"4º",null,null,null,null,27,null,"4º",null,null,null,null,27,null,"4º",null,null,null,null,27]
["5º",null,null,null,null,26,null,"5º",null,null,null,null,26,null,"5º",null,null,null,null,26,null,"5º",null,null,null,null,26]
["6º",null,null,null,null,25,null,"6º",null,null,null,null,25,null,"6º",null,null,null,null,25,null,"6º",null,null,null,null,25]
["7º",null,null,null,null,24,null,"7º",null,null,null,null,24,null,"7º",null,null,null,null,24,null,"7º",null,null,null,null,24]
["8º",null,null,null,null,23,null,"8º",null,null,null,null,23,null,"8º",null,null,null,null,23,null,"8º",null,null,null,null,23]
["9º",null,null,null,null,22,null,"9º",null,null,null,null,22,null,"9º",null,null,null,null,22,null,"9º",null,null,null,null,22]
["10º",null,null,null,null,21,null,"10º",null,null,null,null,21,null,"10º",null,null,null,null,21,null,"10º",null,null,null,null,21]
["11º",null,null,null,null,20,null,"11º",null,null,null,null,20,null,"11º",null,null,null,null,20,null,"11º",null,null,null,null,20]
["12º",null,null,null,null,19,null,"12º",null,null,null,null,19,null,"12º",null,null,null,null,19,null,"12º",null,null,null,null,19]
["13º",null,null,null,null,18,null,"13º",null,null,null,null,18,null,"13º",null,null,null,null,18,null,"13º",null,null,null,null,18]
["14º",null,null,null,null,17,null,"14º",null,null,null,null,17,null,"14º",null,null,null,null,17,null,"14º",null,null,null,null,17]
["15º",null,null,null,null,16,null,"15º",null,null,null,null,16,null,"15º",null,null,null,null,16,null,"15º",null,null,null,null,16]
["16º",null,null,null,null,15,null,"16º",null,null,null,null,15,null,"16º",null,null,null,null,15,null,"16º",null,null,null,null,15]
["17º",null,null,null,null,14,null,"17º",null,null,null,null,14,null,"17º",null,null,null,null,14,null,"17º",null,null,null,null,14]
["18º",null,null,null,null,13,null,"18º",null,null,null,null,13,null,"18º",null,null,null,null,13,null,"18º",null,null,null,null,13]
["19º",null,null,null,null,12,null,"19º",null,null,null,null,12,null,"19º",null,null,null,null,12,null,"19º",null,null,null,null,12]
["20º",null,null,null,null,11,null,"20º",null,null,null,null,11,null,"20º",null,null,null,null,11,null,"20º",null,null,null,null,11]